[Event "Titled Tuesday Blitz September 27 Early 2022"]
[White "Zhao, Jun"]
[Black "Kollars, Dmitrij"]
[WhiteFideId "8602522"]
[BlackFideId "12909572"]
[WhiteElo "2547"]
[BlackElo "2584"]
[Result "0-1"]
[Round "03"]
[TimeControl "180+1"]
[Date "2022.09.27"]
[WhiteClock "0:00:01"]
[BlackClock "0:00:04"]

1. e4 {[%clk 0:03:00]}  e5 {[%clk 0:02:56]} 2. Nf3 {[%clk 0:03:00]}  Nc6 {[%clk 0:02:57]} 3. Bb5 {[%clk 0:03:00]}  a6 {[%clk 0:02:57]} 4. Ba4 {[%clk 0:03:01]}  Nf6 {[%clk 0:02:57]} 5. O-O {[%clk 0:03:01]}  Bc5 {[%clk 0:02:57]} 6. Bxc6 {[%clk 0:02:58]}  dxc6 {[%clk 0:02:57]} 7. d3 {[%clk 0:02:59]}  Qe7 {[%clk 0:02:54]} 8. Be3 {[%clk 0:02:56]}  Bg4 {[%clk 0:02:50]} 9. Nbd2 {[%clk 0:02:55]}  Nd7 {[%clk 0:02:50]} 10. h3 {[%clk 0:02:42]}  Bh5 {[%clk 0:02:49]} 11. Qe1 {[%clk 0:02:36]}  a5 {[%clk 0:02:32]} 12. Nh2 {[%clk 0:02:35]}  O-O {[%clk 0:02:24]} 13. Kh1 {[%clk 0:02:27]}  a4 {[%clk 0:02:21]} 14. a3 {[%clk 0:02:27]}  Rae8 {[%clk 0:02:08]} 15. Nc4 {[%clk 0:02:22]}  f6 {[%clk 0:02:04]} 16. Bxc5 {[%clk 0:02:17]}  Nxc5 {[%clk 0:02:03]} 17. Qb4 {[%clk 0:02:15]}  b6 {[%clk 0:01:53]} 18. Ne3 {[%clk 0:02:14]}  Qd7 {[%clk 0:01:32]} 19. Nhg4 {[%clk 0:02:04]}  Kh8 {[%clk 0:01:28]} 20. Rae1 {[%clk 0:01:52]}  Bg6 {[%clk 0:01:20]} 21. Nh2 {[%clk 0:01:45]}  Ra8 {[%clk 0:01:12]} 22. Nf3 {[%clk 0:01:44]}  Ne6 {[%clk 0:01:11]} 23. Nh4 {[%clk 0:01:42]}  Bf7 {[%clk 0:01:11]} 24. Nhf5 {[%clk 0:01:42]}  c5 {[%clk 0:01:11]} 25. Qd2 {[%clk 0:01:40]}  Rad8 {[%clk 0:01:06]} 26. Qd1 {[%clk 0:01:28]}  Nd4 {[%clk 0:01:00]} 27. Nxd4 {[%clk 0:01:13]}  Qxd4 {[%clk 0:01:01]} 28. Qc1 {[%clk 0:00:56]}  c4 {[%clk 0:01:00]} 29. dxc4 {[%clk 0:00:39]}  Qxe4 {[%clk 0:00:36]} 30. b3 {[%clk 0:00:38]}  axb3 {[%clk 0:00:35]} 31. cxb3 {[%clk 0:00:39]}  Rd3 {[%clk 0:00:36]} 32. Qb1 {[%clk 0:00:34]}  Rfd8 {[%clk 0:00:28]} 33. Kg1 {[%clk 0:00:32]}  Qd4 {[%clk 0:00:24]} 34. Rd1 {[%clk 0:00:32]}  Bg6 {[%clk 0:00:24]} 35. Qc1 {[%clk 0:00:29]}  c6 {[%clk 0:00:18]} 36. Rxd3 {[%clk 0:00:28]}  Bxd3 {[%clk 0:00:19]} 37. Rd1 {[%clk 0:00:28]}  e4 {[%clk 0:00:19]} 38. Qd2 {[%clk 0:00:19]}  g6 {[%clk 0:00:18]} 39. Qb4 {[%clk 0:00:19]}  f5 {[%clk 0:00:16]} 40. Qe7 {[%clk 0:00:17]}  Qd6 {[%clk 0:00:16]} 41. Qg5 {[%clk 0:00:04]}  Rf8 {[%clk 0:00:12]} 42. h4 {[%clk 0:00:03]}  f4 {[%clk 0:00:12]} 43. Ng4 {[%clk 0:00:02]}  Rf5 {[%clk 0:00:12]} 44. Qh6 {[%clk 0:00:02]}  Rh5 {[%clk 0:00:06]} 45. Ne5 {[%clk 0:00:03]}  Rxe5 {[%clk 0:00:04]} 46. Qxf4 {[%clk 0:00:04]}  Qe7 {[%clk 0:00:04]} 47. Qe3 {[%clk 0:00:03]}  Rf5 {[%clk 0:00:04]} 48. Qxb6 {[%clk 0:00:02]}  Qxh4 {[%clk 0:00:04]} 49. Qb8+ {[%clk 0:00:02]}  Kg7 {[%clk 0:00:04]} 50. Qc7+ {[%clk 0:00:02]}  Kh6 {[%clk 0:00:04]} 51. Qb6 {[%clk 0:00:03]}  Rh5 {[%clk 0:00:04]} 52. Qe3+ {[%clk 0:00:03]}  g5 {[%clk 0:00:04]} 53. Qh3 {[%clk 0:00:02]}  Qxh3 {[%clk 0:00:04]} 54. gxh3 {[%clk 0:00:03]}  Rxh3 {[%clk 0:00:05]} 55. a4 {[%clk 0:00:03]}  Rf3 {[%clk 0:00:05]} 56. a5 {[%clk 0:00:03]}  Bc2 {[%clk 0:00:06]} 57. Rd6+ {[%clk 0:00:03]}  Kh5 {[%clk 0:00:04]} 58. b4 {[%clk 0:00:03]}  Rb3 {[%clk 0:00:03]} 59. b5 {[%clk 0:00:02]}  cxb5 {[%clk 0:00:04]} 60. c5 {[%clk 0:00:03]}  Rc3 {[%clk 0:00:03]} 61. Rc6 {[%clk 0:00:02]}  b4 {[%clk 0:00:03]} 62. a6 {[%clk 0:00:02]}  b3 {[%clk 0:00:04]} 63. a7 {[%clk 0:00:03]}  b2 {[%clk 0:00:05]} 64. Rb6 {[%clk 0:00:04]}  b1=Q+ {[%clk 0:00:06]} 65. Rxb1 {[%clk 0:00:04]}  Ra3 {[%clk 0:00:05]} 66. Rc1 {[%clk 0:00:04]}  Bb3 {[%clk 0:00:04]} 67. c6 {[%clk 0:00:04]}  Be6 {[%clk 0:00:05]} 68. c7 {[%clk 0:00:04]}  Bc8 {[%clk 0:00:04]} 69. Rc4 {[%clk 0:00:01]}  Rxa7 {[%clk 0:00:05]} 70. Rxe4 {[%clk 0:00:01]}  Rxc7 {[%clk 0:00:04]} 0-1


[Site "https://www.chess.com"]

[Event "Titled Tuesday Blitz September 27 Early 2022"]
[White "Zheenbekov, Nurgazy"]
[Black "Kuchava, Ana"]
[WhiteFideId "13800485"]
[BlackFideId "13605348"]
[WhiteElo "1932"]
[BlackElo "1955"]
[Result "1-0"]
[Round "03"]
[TimeControl "180+1"]
[Date "2022.09.27"]
[WhiteClock "0:01:11"]
[BlackClock "0:01:01"]

1. e4 {[%clk 0:02:59]}  c5 {[%clk 0:02:58]} 2. Nf3 {[%clk 0:02:58]}  d6 {[%clk 0:02:59]} 3. c3 {[%clk 0:02:57]}  Nf6 {[%clk 0:02:58]} 4. Bd3 {[%clk 0:02:57]}  Nc6 {[%clk 0:02:57]} 5. O-O {[%clk 0:02:57]}  e6 {[%clk 0:02:56]} 6. Re1 {[%clk 0:02:56]}  Be7 {[%clk 0:02:56]} 7. Bf1 {[%clk 0:02:56]}  O-O {[%clk 0:02:56]} 8. d4 {[%clk 0:02:56]}  cxd4 {[%clk 0:02:56]} 9. cxd4 {[%clk 0:02:56]}  d5 {[%clk 0:02:57]} 10. e5 {[%clk 0:02:55]}  Ne4 {[%clk 0:02:57]} 11. a3 {[%clk 0:02:45]}  Bd7 {[%clk 0:02:55]} 12. Bd3 {[%clk 0:02:42]}  f5 {[%clk 0:02:53]} 13. exf6 {[%clk 0:02:42]}  Nxf6 {[%clk 0:02:53]} 14. h3 {[%clk 0:02:42]}  Bd6 {[%clk 0:02:45]} 15. b4 {[%clk 0:02:39]}  a6 {[%clk 0:02:44]} 16. Bb2 {[%clk 0:02:33]}  Qc7 {[%clk 0:02:43]} 17. Ne5 {[%clk 0:02:33]}  Rae8 {[%clk 0:02:41]} 18. Nd2 {[%clk 0:02:32]}  Bc8 {[%clk 0:02:33]} 19. Rc1 {[%clk 0:02:31]}  Qb6 {[%clk 0:02:30]} 20. Nxc6 {[%clk 0:02:08]}  bxc6 {[%clk 0:02:31]} 21. Nf3 {[%clk 0:02:08]}  Bf4 {[%clk 0:02:25]} 22. Rc2 {[%clk 0:01:54]}  Bd7 {[%clk 0:02:10]} 23. Ne5 {[%clk 0:01:53]}  Bxe5 {[%clk 0:02:10]} 24. dxe5 {[%clk 0:01:52]}  Ne4 {[%clk 0:01:26]} 25. Bxe4 {[%clk 0:01:50]}  dxe4 {[%clk 0:01:25]} 26. Qxd7 {[%clk 0:01:47]}  Rd8 {[%clk 0:01:22]} 27. Qxe6+ {[%clk 0:01:47]}  Kh8 {[%clk 0:01:22]} 28. Qg4 {[%clk 0:01:29]}  h6 {[%clk 0:01:06]} 29. e6 {[%clk 0:01:28]}  Rg8 {[%clk 0:01:04]} 30. e7 {[%clk 0:01:18]}  Rde8 {[%clk 0:01:03]} 31. Qg6 {[%clk 0:01:13]}  Rxe7 {[%clk 0:01:01]} 32. Qxh6# {[%clk 0:01:11]} 1-0


[Site "https://www.chess.com"]

[Event "Titled Tuesday Blitz September 27 Early 2022"]
[White "Zhigalko, Sergei"]
[Black "Martin Carmona, Gaston Manuel"]
[WhiteFideId "13502956"]
[BlackFideId "22284567"]
[WhiteElo "2662"]
[BlackElo "2162"]
[Result "1-0"]
[Round "03"]
[TimeControl "180+1"]
[Date "2022.09.27"]
[WhiteClock "0:00:04"]
[BlackClock "0:00:01"]

1. e4 {[%clk 0:03:00]}  c5 {[%clk 0:02:59]} 2. c3 {[%clk 0:02:59]}  Nf6 {[%clk 0:02:58]} 3. e5 {[%clk 0:02:59]}  Nd5 {[%clk 0:02:58]} 4. Nf3 {[%clk 0:03:00]}  Nc6 {[%clk 0:02:20]} 5. Bc4 {[%clk 0:03:00]}  Nb6 {[%clk 0:01:37]} 6. Bb3 {[%clk 0:03:00]}  c4 {[%clk 0:01:35]} 7. Bc2 {[%clk 0:03:00]}  d5 {[%clk 0:01:35]} 8. exd6 {[%clk 0:03:00]}  Qxd6 {[%clk 0:01:36]} 9. O-O {[%clk 0:03:00]}  Bg4 {[%clk 0:01:36]} 10. Re1 {[%clk 0:03:00]}  e6 {[%clk 0:01:35]} 11. b3 {[%clk 0:03:00]}  cxb3 {[%clk 0:01:35]} 12. axb3 {[%clk 0:03:00]}  Be7 {[%clk 0:01:35]} 13. Na3 {[%clk 0:02:59]}  O-O {[%clk 0:01:30]} 14. Nc4 {[%clk 0:02:57]}  Nxc4 {[%clk 0:01:30]} 15. bxc4 {[%clk 0:02:58]}  Qd7 {[%clk 0:01:09]} 16. d4 {[%clk 0:02:56]}  b6 {[%clk 0:00:59]} 17. Be4 {[%clk 0:02:51]}  Rac8 {[%clk 0:00:57]} 18. Qd3 {[%clk 0:02:40]}  Bxf3 {[%clk 0:00:39]} 19. Qxf3 {[%clk 0:02:13]}  Na5 {[%clk 0:00:39]} 20. c5 {[%clk 0:02:06]}  Nb3 {[%clk 0:00:32]} 21. c6 {[%clk 0:02:06]}  Qc7 {[%clk 0:00:29]} 22. Bf4 {[%clk 0:02:03]}  Bd6 {[%clk 0:00:28]} 23. Bxd6 {[%clk 0:01:55]}  Qxd6 {[%clk 0:00:29]} 24. Rxa7 {[%clk 0:01:26]}  Nd2 {[%clk 0:00:29]} 25. Bxh7+ {[%clk 0:01:26]}  Kxh7 {[%clk 0:00:28]} 26. Qd3+ {[%clk 0:01:26]}  Kg8 {[%clk 0:00:29]} 27. Qxd2 {[%clk 0:01:26]}  Qxc6 {[%clk 0:00:28]} 28. Re3 {[%clk 0:01:23]}  b5 {[%clk 0:00:24]} 29. Rg3 {[%clk 0:01:16]}  Qe4 {[%clk 0:00:10]} 30. h3 {[%clk 0:01:05]}  g6 {[%clk 0:00:09]} 31. Rg4 {[%clk 0:00:54]}  Qf5 {[%clk 0:00:09]} 32. Kh2 {[%clk 0:00:50]}  Ra8 {[%clk 0:00:08]} 33. Rxa8 {[%clk 0:00:26]}  Rxa8 {[%clk 0:00:09]} 34. Rg5 {[%clk 0:00:27]}  Qf6 {[%clk 0:00:07]} 35. Rxb5 {[%clk 0:00:24]}  Rc8 {[%clk 0:00:07]} 36. Re5 {[%clk 0:00:20]}  Kg7 {[%clk 0:00:07]} 37. Re3 {[%clk 0:00:17]}  Qe7 {[%clk 0:00:05]} 38. Qe2 {[%clk 0:00:13]}  Qd6+ {[%clk 0:00:05]} 39. g3 {[%clk 0:00:13]}  Rb8 {[%clk 0:00:04]} 40. Qf3 {[%clk 0:00:07]}  Rb2 {[%clk 0:00:04]} 41. Re2 {[%clk 0:00:07]}  Rb3 {[%clk 0:00:04]} 42. Kg2 {[%clk 0:00:04]}  Qc7 {[%clk 0:00:04]} 43. Re3 {[%clk 0:00:05]}  Qc4 {[%clk 0:00:04]} 44. h4 {[%clk 0:00:02]}  Rb1 {[%clk 0:00:04]} 45. Qe2 {[%clk 0:00:02]}  Qc6+ {[%clk 0:00:03]} 46. Qf3 {[%clk 0:00:02]}  Qc4 {[%clk 0:00:03]} 47. Qe2 {[%clk 0:00:03]}  Qc6+ {[%clk 0:00:04]} 48. Rf3 {[%clk 0:00:03]}  Rc1 {[%clk 0:00:02]} 49. Qe5+ {[%clk 0:00:03]}  Kg8 {[%clk 0:00:02]} 50. Qf4 {[%clk 0:00:03]}  Qd7 {[%clk 0:00:01]} 51. Qxc1 {[%clk 0:00:04]} 1-0


[Site "https://www.chess.com"]

[Event "Titled Tuesday Blitz September 27 Early 2022"]
[White "Zilleruelo Irizarry, Diego"]
[Black "Papp, Levente"]
[WhiteFideId "3101460"]
[BlackFideId "751243"]
[WhiteElo "1998"]
[BlackElo "2341"]
[Result "0-1"]
[Round "03"]
[TimeControl "180+1"]
[Date "2022.09.27"]
[WhiteClock "0:00:17"]
[BlackClock "0:00:09"]

1. e4 {[%clk 0:03:00]}  e6 {[%clk 0:03:00]} 2. d4 {[%clk 0:03:00]}  d5 {[%clk 0:03:00]} 3. Nd2 {[%clk 0:03:01]}  Nf6 {[%clk 0:02:58]} 4. e5 {[%clk 0:03:00]}  Nfd7 {[%clk 0:02:59]} 5. Bd3 {[%clk 0:03:01]}  c5 {[%clk 0:03:00]} 6. c3 {[%clk 0:03:01]}  Nc6 {[%clk 0:03:00]} 7. Ne2 {[%clk 0:03:01]}  cxd4 {[%clk 0:03:00]} 8. cxd4 {[%clk 0:03:02]}  f6 {[%clk 0:03:01]} 9. exf6 {[%clk 0:03:02]}  Nxf6 {[%clk 0:03:02]} 10. Nf3 {[%clk 0:03:02]}  Bd6 {[%clk 0:03:03]} 11. Bf4 {[%clk 0:03:01]}  O-O {[%clk 0:03:04]} 12. Bxd6 {[%clk 0:03:00]}  Qxd6 {[%clk 0:03:04]} 13. O-O {[%clk 0:03:01]}  e5 {[%clk 0:03:02]} 14. dxe5 {[%clk 0:02:57]}  Nxe5 {[%clk 0:03:03]} 15. Nxe5 {[%clk 0:02:57]}  Qxe5 {[%clk 0:03:03]} 16. Nc3 {[%clk 0:02:53]}  Ng4 {[%clk 0:02:33]} 17. g3 {[%clk 0:02:50]}  Qh5 {[%clk 0:02:15]} 18. h4 {[%clk 0:02:37]}  d4 {[%clk 0:01:39]} 19. Ne4 {[%clk 0:02:18]}  Bf5 {[%clk 0:01:21]} 20. Ng5 {[%clk 0:02:15]}  h6 {[%clk 0:01:02]} 21. Bxf5 {[%clk 0:02:05]}  Rxf5 {[%clk 0:01:00]} 22. Ne6 {[%clk 0:01:49]}  Re8 {[%clk 0:00:26]} 23. Nxd4 {[%clk 0:01:46]}  Rd5 {[%clk 0:00:26]} 24. Qb3 {[%clk 0:01:41]}  Kh8 {[%clk 0:00:22]} 25. Nf3 {[%clk 0:01:31]}  Rf8 {[%clk 0:00:21]} 26. Rad1 {[%clk 0:01:28]}  Rdf5 {[%clk 0:00:20]} 27. Nd4 {[%clk 0:01:03]}  Rxf2 {[%clk 0:00:18]} 28. Ne6 {[%clk 0:00:54]}  Rxf1+ {[%clk 0:00:14]} 29. Rxf1 {[%clk 0:00:53]}  Rxf1+ {[%clk 0:00:15]} 30. Kxf1 {[%clk 0:00:50]}  Qf5+ {[%clk 0:00:15]} 31. Kg2 {[%clk 0:00:50]}  Qe4+ {[%clk 0:00:10]} 32. Kg1 {[%clk 0:00:36]}  Qe1+ {[%clk 0:00:09]} 33. Kg2 {[%clk 0:00:36]}  Qf2+ {[%clk 0:00:09]} 34. Kh3 {[%clk 0:00:35]}  h5 {[%clk 0:00:10]} 35. Qc2 {[%clk 0:00:17]}  Qxc2 {[%clk 0:00:09]} 0-1


[Site "https://www.chess.com"]

[Event "Titled Tuesday Blitz September 27 Early 2022"]
[White "Aakanksha Hagawane"]
[Black "Korchmar, Vasiliy"]
[WhiteFideId "25014510"]
[BlackFideId "24131750"]
[WhiteElo "1971"]
[BlackElo "2370"]
[Result "1-0"]
[Round "04"]
[TimeControl "180+1"]
[Date "2022.09.27"]
[WhiteClock "0:00:20"]
[BlackClock "0:00:13"]

1. e4 {[%clk 0:02:51]}  c5 {[%clk 0:02:39]} 2. Nf3 {[%clk 0:02:50]}  d6 {[%clk 0:02:40]} 3. Bb5+ {[%clk 0:02:48]}  Nd7 {[%clk 0:02:39]} 4. O-O {[%clk 0:02:46]}  a6 {[%clk 0:02:38]} 5. Bd3 {[%clk 0:02:46]}  Ngf6 {[%clk 0:02:38]} 6. Re1 {[%clk 0:02:45]}  e6 {[%clk 0:02:39]} 7. c3 {[%clk 0:02:45]}  b5 {[%clk 0:02:39]} 8. Bc2 {[%clk 0:02:45]}  Bb7 {[%clk 0:02:40]} 9. d4 {[%clk 0:02:44]}  Be7 {[%clk 0:02:41]} 10. Nbd2 {[%clk 0:02:42]}  O-O {[%clk 0:02:41]} 11. Nf1 {[%clk 0:02:35]}  Qc7 {[%clk 0:02:35]} 12. Bd2 {[%clk 0:02:32]}  Rfc8 {[%clk 0:02:29]} 13. Rc1 {[%clk 0:02:32]}  a5 {[%clk 0:02:29]} 14. Ng3 {[%clk 0:02:27]}  b4 {[%clk 0:02:26]} 15. Qe2 {[%clk 0:02:25]}  cxd4 {[%clk 0:02:24]} 16. cxd4 {[%clk 0:02:23]}  Qd8 {[%clk 0:02:15]} 17. e5 {[%clk 0:02:19]}  Nd5 {[%clk 0:02:08]} 18. Qe4 {[%clk 0:02:10]}  Nf8 {[%clk 0:02:06]} 19. Qg4 {[%clk 0:02:07]}  a4 {[%clk 0:01:47]} 20. Bg5 {[%clk 0:02:01]}  a3 {[%clk 0:01:42]} 21. bxa3 {[%clk 0:01:59]}  bxa3 {[%clk 0:01:35]} 22. Nh5 {[%clk 0:01:56]}  Ng6 {[%clk 0:01:29]} 23. h4 {[%clk 0:01:49]}  Rc3 {[%clk 0:01:19]} 24. Be4 {[%clk 0:01:46]}  Rac8 {[%clk 0:01:16]} 25. Rxc3 {[%clk 0:01:45]}  Rxc3 {[%clk 0:01:17]} 26. Ng3 {[%clk 0:01:44]}  dxe5 {[%clk 0:00:57]} 27. h5 {[%clk 0:01:33]}  Nf8 {[%clk 0:00:48]} 28. dxe5 {[%clk 0:01:32]}  Bxg5 {[%clk 0:00:41]} 29. Nxg5 {[%clk 0:01:31]}  h6 {[%clk 0:00:39]} 30. Nf3 {[%clk 0:01:23]}  Qc7 {[%clk 0:00:39]} 31. Kh2 {[%clk 0:01:16]}  Rc1 {[%clk 0:00:37]} 32. Bd3 {[%clk 0:01:03]}  Rxe1 {[%clk 0:00:34]} 33. Nxe1 {[%clk 0:01:04]}  Qxe5 {[%clk 0:00:35]} 34. Nf3 {[%clk 0:01:03]}  Qf4 {[%clk 0:00:29]} 35. Qxf4 {[%clk 0:00:59]}  Nxf4 {[%clk 0:00:30]} 36. Bb1 {[%clk 0:00:58]}  Bxf3 {[%clk 0:00:29]} 37. gxf3 {[%clk 0:00:58]}  Nd7 {[%clk 0:00:29]} 38. Ne4 {[%clk 0:00:55]}  Nb6 {[%clk 0:00:23]} 39. Nd6 {[%clk 0:00:54]}  Nbd5 {[%clk 0:00:15]} 40. Nb5 {[%clk 0:00:52]}  Nxh5 {[%clk 0:00:14]} 41. Nxa3 {[%clk 0:00:52]}  Nc3 {[%clk 0:00:15]} 42. Bd3 {[%clk 0:00:49]}  Nxa2 {[%clk 0:00:14]} 43. Nb5 {[%clk 0:00:47]}  Nb4 {[%clk 0:00:15]} 44. Bb1 {[%clk 0:00:47]}  Nf4 {[%clk 0:00:15]} 45. Kg3 {[%clk 0:00:46]}  g5 {[%clk 0:00:15]} 46. Nd4 {[%clk 0:00:46]}  Nbd5 {[%clk 0:00:15]} 47. Be4 {[%clk 0:00:43]}  Kg7 {[%clk 0:00:16]} 48. Bb1 {[%clk 0:00:34]}  Nc3 {[%clk 0:00:16]} 49. Bc2 {[%clk 0:00:34]}  Nce2+ {[%clk 0:00:16]} 50. Nxe2 {[%clk 0:00:34]}  Nxe2+ {[%clk 0:00:17]} 51. Kg4 {[%clk 0:00:35]}  Nd4 {[%clk 0:00:18]} 52. Bd3 {[%clk 0:00:35]}  Nc6 {[%clk 0:00:18]} 53. Kg3 {[%clk 0:00:35]}  e5 {[%clk 0:00:18]} 54. Be4 {[%clk 0:00:35]}  Ne7 {[%clk 0:00:18]} 55. Bb1 {[%clk 0:00:34]}  f5 {[%clk 0:00:18]} 56. Bc2 {[%clk 0:00:34]}  Kf6 {[%clk 0:00:18]} 57. Bd3 {[%clk 0:00:34]}  Nd5 {[%clk 0:00:19]} 58. Bb1 {[%clk 0:00:34]}  Nf4 {[%clk 0:00:19]} 59. Bc2 {[%clk 0:00:34]}  h5 {[%clk 0:00:20]} 60. Bb1 {[%clk 0:00:34]}  h4+ {[%clk 0:00:21]} 61. Kh2 {[%clk 0:00:34]}  Ne2 {[%clk 0:00:20]} 62. Bd3 {[%clk 0:00:34]}  Nd4 {[%clk 0:00:20]} 63. Kg2 {[%clk 0:00:33]}  Ne6 {[%clk 0:00:18]} 64. Kh2 {[%clk 0:00:33]}  g4 {[%clk 0:00:15]} 65. fxg4 {[%clk 0:00:33]}  fxg4 {[%clk 0:00:15]} 66. Be4 {[%clk 0:00:32]}  Kg5 {[%clk 0:00:16]} 67. Bd5 {[%clk 0:00:32]}  Nd4 {[%clk 0:00:16]} 68. Bb7 {[%clk 0:00:31]}  Kf4 {[%clk 0:00:16]} 69. Bd5 {[%clk 0:00:31]}  Nf3+ {[%clk 0:00:17]} 70. Kg2 {[%clk 0:00:31]}  h3+ {[%clk 0:00:17]} 71. Kh1 {[%clk 0:00:30]}  Ng5 {[%clk 0:00:16]} 72. Bb7 {[%clk 0:00:29]}  e4 {[%clk 0:00:16]} 73. Bc8 {[%clk 0:00:24]}  Nf3 {[%clk 0:00:16]} 74. Bxg4 {[%clk 0:00:22]}  h2 {[%clk 0:00:15]} 75. Bc8 {[%clk 0:00:20]}  Ke5 {[%clk 0:00:15]} 76. Bb7 {[%clk 0:00:20]}  Kd4 {[%clk 0:00:15]} 77. Ba8 {[%clk 0:00:19]}  Kd3 {[%clk 0:00:15]} 78. Bb7 {[%clk 0:00:19]}  Kd4 {[%clk 0:00:11]} 79. Bc6 {[%clk 0:00:19]}  Ke5 {[%clk 0:00:11]} 80. Bb7 {[%clk 0:00:18]}  Kf4 {[%clk 0:00:12]} 81. Bc6 {[%clk 0:00:19]}  Nd4 {[%clk 0:00:11]} 82. Bxe4 {[%clk 0:00:18]}  Kxe4 {[%clk 0:00:12]} 83. Kxh2 {[%clk 0:00:18]}  Kf3 {[%clk 0:00:12]} 84. Kh3 {[%clk 0:00:18]}  Ke2 {[%clk 0:00:13]} 85. f4 {[%clk 0:00:18]}  Ne6 {[%clk 0:00:14]} 86. f5 {[%clk 0:00:18]}  Nf8 {[%clk 0:00:15]} 87. f6 {[%clk 0:00:18]}  Nd7 {[%clk 0:00:16]} 88. Kg4 {[%clk 0:00:18]}  Nf8 {[%clk 0:00:17]} 89. Kf5 {[%clk 0:00:19]}  Nd7 {[%clk 0:00:18]} 90. Ke6 {[%clk 0:00:20]}  Nf8+ {[%clk 0:00:19]} 91. Ke7 {[%clk 0:00:20]}  Nh7 {[%clk 0:00:19]} 92. f7 {[%clk 0:00:20]}  Kf3 {[%clk 0:00:20]} 93. Ke6 {[%clk 0:00:19]}  Nf8+ {[%clk 0:00:20]} 94. Kf6 {[%clk 0:00:20]}  Nd7+ {[%clk 0:00:20]} 95. Ke7 {[%clk 0:00:20]}  Ne5 {[%clk 0:00:13]} 96. f8=Q+ {[%clk 0:00:20]} 1-0


[Site "https://www.chess.com"]

[Event "Titled Tuesday Blitz September 27 Early 2022"]
[White "Ahmadzada, Ahmad"]
[Black "Malyi, Viacheslav"]
[WhiteFideId "13413007"]
[BlackFideId "14123983"]
[WhiteElo "2185"]
[BlackElo "2190"]
[Result "0-1"]
[Round "04"]
[TimeControl "180+1"]
[Date "2022.09.27"]
[WhiteClock "0:00:03"]
[BlackClock "0:00:29"]

1. Nf3 {[%clk 0:03:00]}  Nf6 {[%clk 0:02:57]} 2. g3 {[%clk 0:03:01]}  e6 {[%clk 0:02:57]} 3. Bg2 {[%clk 0:03:01]}  d5 {[%clk 0:02:58]} 4. O-O {[%clk 0:03:01]}  Be7 {[%clk 0:02:59]} 5. c4 {[%clk 0:03:01]}  O-O {[%clk 0:03:00]} 6. b3 {[%clk 0:02:59]}  c5 {[%clk 0:02:58]} 7. Bb2 {[%clk 0:02:59]}  d4 {[%clk 0:02:58]} 8. e3 {[%clk 0:02:58]}  Nc6 {[%clk 0:02:58]} 9. exd4 {[%clk 0:02:58]}  cxd4 {[%clk 0:02:59]} 10. Re1 {[%clk 0:02:58]}  Bc5 {[%clk 0:02:55]} 11. d3 {[%clk 0:02:57]}  Re8 {[%clk 0:02:54]} 12. a3 {[%clk 0:02:55]}  a5 {[%clk 0:02:54]} 13. Bc1 {[%clk 0:02:44]}  e5 {[%clk 0:02:52]} 14. Bg5 {[%clk 0:02:42]}  h6 {[%clk 0:02:51]} 15. Bxf6 {[%clk 0:02:42]}  Qxf6 {[%clk 0:02:52]} 16. Nbd2 {[%clk 0:02:42]}  Bf5 {[%clk 0:02:44]} 17. Ne4 {[%clk 0:02:40]}  Bxe4 {[%clk 0:02:43]} 18. Rxe4 {[%clk 0:02:40]}  Qd6 {[%clk 0:02:42]} 19. Nh4 {[%clk 0:02:16]}  g6 {[%clk 0:02:28]} 20. Qc1 {[%clk 0:01:54]}  Kh7 {[%clk 0:02:26]} 21. Ra2 {[%clk 0:01:50]}  f5 {[%clk 0:02:25]} 22. Re1 {[%clk 0:01:49]}  Re7 {[%clk 0:02:23]} 23. Bd5 {[%clk 0:01:42]}  Rae8 {[%clk 0:02:19]} 24. f3 {[%clk 0:00:57]}  Qf6 {[%clk 0:02:12]} 25. Ng2 {[%clk 0:00:45]}  Qg5 {[%clk 0:02:09]} 26. Qxg5 {[%clk 0:00:24]}  hxg5 {[%clk 0:02:10]} 27. Ree2 {[%clk 0:00:25]}  Kg7 {[%clk 0:02:07]} 28. Ne1 {[%clk 0:00:25]}  Kf6 {[%clk 0:02:06]} 29. Nc2 {[%clk 0:00:25]}  e4 {[%clk 0:01:59]} 30. fxe4 {[%clk 0:00:19]}  fxe4 {[%clk 0:02:00]} 31. Ne1 {[%clk 0:00:10]}  e3 {[%clk 0:01:31]} 32. Nc2 {[%clk 0:00:10]}  Ne5 {[%clk 0:01:26]} 33. b4 {[%clk 0:00:10]}  Ba7 {[%clk 0:01:08]} 34. Ne1 {[%clk 0:00:07]}  g4 {[%clk 0:01:02]} 35. bxa5 {[%clk 0:00:06]}  Bc5 {[%clk 0:01:00]} 36. Rab2 {[%clk 0:00:05]}  Ra8 {[%clk 0:01:01]} 37. Rb5 {[%clk 0:00:03]}  Rc7 {[%clk 0:00:58]} 38. Kg2 {[%clk 0:00:02]}  Bxa3 {[%clk 0:00:51]} 39. Nc2 {[%clk 0:00:02]}  Bc5 {[%clk 0:00:50]} 40. Bxb7 {[%clk 0:00:02]}  Rh8 {[%clk 0:00:39]} 41. Be4 {[%clk 0:00:02]}  Rch7 {[%clk 0:00:39]} 42. Kg1 {[%clk 0:00:01]}  Nf3+ {[%clk 0:00:38]} 43. Kf1 {[%clk 0:00:02]}  Rxh2 {[%clk 0:00:31]} 44. Rxh2 {[%clk 0:00:02]}  Rxh2 {[%clk 0:00:32]} 45. Bxf3 {[%clk 0:00:02]}  gxf3 {[%clk 0:00:31]} 46. Kg1 {[%clk 0:00:03]}  Rxc2 {[%clk 0:00:29]} 47. Rxc5 {[%clk 0:00:03]} 0-1


[Site "https://www.chess.com"]

[Event "Titled Tuesday Blitz September 27 Early 2022"]
[White "Aizpurua, Patrick Emilio"]
[Black "Samunenkov, Ihor"]
[WhiteFideId "6600522"]
[BlackFideId "14187086"]
[WhiteElo "2378"]
[BlackElo "2441"]
[Result "1-0"]
[Round "04"]
[TimeControl "180+1"]
[Date "2022.09.27"]
[WhiteClock "0:00:09"]
[BlackClock "0:00:03"]

1. d4 {[%clk 0:03:00]}  Nf6 {[%clk 0:02:58]} 2. Nf3 {[%clk 0:03:00]}  d5 {[%clk 0:02:54]} 3. c4 {[%clk 0:03:00]}  e6 {[%clk 0:02:50]} 4. g3 {[%clk 0:03:00]}  Be7 {[%clk 0:02:47]} 5. Bg2 {[%clk 0:03:00]}  O-O {[%clk 0:02:47]} 6. O-O {[%clk 0:03:00]}  c6 {[%clk 0:02:48]} 7. Qc2 {[%clk 0:03:00]}  b6 {[%clk 0:02:48]} 8. b3 {[%clk 0:03:00]}  Bb7 {[%clk 0:02:42]} 9. Rd1 {[%clk 0:02:59]}  Nbd7 {[%clk 0:02:39]} 10. Nc3 {[%clk 0:02:59]}  Ba6 {[%clk 0:02:40]} 11. e4 {[%clk 0:02:57]}  dxc4 {[%clk 0:02:37]} 12. h3 {[%clk 0:02:48]}  Qc8 {[%clk 0:02:05]} 13. g4 {[%clk 0:02:46]}  h6 {[%clk 0:01:59]} 14. g5 {[%clk 0:02:45]}  hxg5 {[%clk 0:01:59]} 15. Bxg5 {[%clk 0:02:46]}  Re8 {[%clk 0:01:46]} 16. e5 {[%clk 0:02:16]}  Nd5 {[%clk 0:01:41]} 17. Ne4 {[%clk 0:02:12]}  c3 {[%clk 0:01:18]} 18. Bxe7 {[%clk 0:01:46]}  Rxe7 {[%clk 0:01:18]} 19. Nxc3 {[%clk 0:01:42]}  Nf4 {[%clk 0:01:16]} 20. Qe4 {[%clk 0:01:38]}  Nxg2 {[%clk 0:01:11]} 21. Kxg2 {[%clk 0:01:39]}  c5 {[%clk 0:01:11]} 22. d5 {[%clk 0:01:36]}  Bb7 {[%clk 0:01:08]} 23. Qh4 {[%clk 0:01:36]}  Re8 {[%clk 0:01:00]} 24. Ne4 {[%clk 0:01:12]}  Bxd5 {[%clk 0:00:54]} 25. Nd6 {[%clk 0:00:41]}  Qc6 {[%clk 0:00:45]} 26. Rxd5 {[%clk 0:00:34]}  Qxd5 {[%clk 0:00:46]} 27. Nxe8 {[%clk 0:00:27]}  Nxe5 {[%clk 0:00:24]} 28. Nf6+ {[%clk 0:00:14]}  gxf6 {[%clk 0:00:24]} 29. Qxf6 {[%clk 0:00:15]}  Nxf3 {[%clk 0:00:20]} 30. Qxf3 {[%clk 0:00:16]}  Rd8 {[%clk 0:00:18]} 31. Re1 {[%clk 0:00:15]}  Kf8 {[%clk 0:00:16]} 32. Re4 {[%clk 0:00:14]}  Ke7 {[%clk 0:00:13]} 33. h4 {[%clk 0:00:13]}  Rg8+ {[%clk 0:00:13]} 34. Kh2 {[%clk 0:00:13]}  f5 {[%clk 0:00:07]} 35. Re3 {[%clk 0:00:11]}  Qd6+ {[%clk 0:00:07]} 36. Kh1 {[%clk 0:00:11]}  Rg4 {[%clk 0:00:05]} 37. h5 {[%clk 0:00:07]}  Rh4+ {[%clk 0:00:03]} 38. Kg1 {[%clk 0:00:08]}  Qh2+ {[%clk 0:00:03]} 39. Kf1 {[%clk 0:00:09]}  Qh3+ {[%clk 0:00:02]} 40. Qxh3 {[%clk 0:00:08]}  Rxh3 {[%clk 0:00:03]} 41. Rxh3 {[%clk 0:00:09]} 1-0


[Site "https://www.chess.com"]